bitfinex-derivatives/quotes_BTCF0:USTF0_20210703
["timestamp","ask_amount","ask_price","bid_price","bid_amount"]
[1625300422287,0.48115088,34428.0,34420.0,1.4131844]
[1625300422436,0.48115088,34428.0,34420.0,0.90263198]
[1625300422688,0.54015088,34428.0,34420.0,0.90263198]
[1625300422787,0.48115088,34428.0,34420.0,0.90263198]
[1625300423238,0.54015088,34428.0,34420.0,0.90263198]
[1625300423337,0.48115088,34428.0,34420.0,0.90263198]
[1625300423587,0.48115088,34428.0,34427.0,0.24057544]
[1625300423887,0.54015088,34428.0,34427.0,0.24057544]
[1625300423987,0.48115088,34428.0,34427.0,0.24057544]
[1625300425491,0.54015088,34428.0,34427.0,0.24057544]
[1625300425640,0.48115088,34428.0,34427.0,0.24057544]
[1625300425740,0.54015088,34428.0,34427.0,0.24057544]
[1625300426140,0.59915088,34428.0,34427.0,0.24057544]
[1625300426294,0.83103088,34428.0,34422.0,0.58131111]
[1625300426895,1.54042167,34424.0,34422.0,0.24057544]
[1625300426992,1.59942167,34424.0,34422.0,0.24057544]
[1625300427092,3.7335,34423.0,34422.0,0.24057544]
[1625300427192,3.8515,34423.0,34422.0,0.24057544]
[1625300427593,5.63330791,34423.0,34422.0,0.24057544]
[1625300428142,1.89980791,34423.0,34422.0,0.24057544]
[1625300430449,1.84080791,34423.0,34422.0,0.24057544]
[1625300432401,1.89980791,34423.0,34422.0,0.24057544]
[1625300432701,1.84080791,34423.0,34422.0,0.24057544]
[1625300433853,1.84080791,34423.0,34422.0,0.46795544]
[1625300434706,0.29957544,34423.0,34422.0,0.46795544]
[1625300435207,1.84301028,34423.0,34422.0,0.46795544]
[1625300436308,1.90201028,34423.0,34422.0,0.46795544]
[1625300439012,1.90201028,34423.0,34422.0,0.24057544]
[1625300441920,2.18788028,34423.0,34422.0,0.24057544]
[1625300443621,3.8930603,34423.0,34422.0,0.24057544]
[1625300445421,3.8930603,34423.0,34415.0,0.85819595]
[1625300445672,0.24057544,34421.0,34417.0,0.24057544]
[1625300445772,0.29957544,34421.0,34417.0,0.24057544]
[1625300445872,0.35857544,34421.0,34417.0,0.24057544]
[1625300446323,1.53574565,34418.0,34417.0,0.24057544]
[1625300446472,1.65374565,34418.0,34417.0,0.24057544]
[1625300447674,1.89432109,34418.0,34417.0,0.24057544]
[1625300453341,5.41082109,34418.0,34417.0,0.24057544]
[1625300455196,1.89432109,34418.0,34417.0,0.24057544]
[1625300456147,6.36082109,34418.0,34417.0,0.24057544]
[1625300457098,1.89432109,34418.0,34417.0,0.24057544]
[1625300457199,1.83532109,34418.0,34417.0,0.44707544]
[1625300457500,1.77632109,34418.0,34417.0,0.44707544]
[1625300457598,1.83532109,34418.0,34417.0,0.44707544]
[1625300458701,1.77632109,34418.0,34417.0,0.44707544]
[1625300458851,1.83532109,34418.0,34417.0,0.44707544]
[1625300459453,1.77632109,34418.0,34417.0,0.44707544]
[1625300459853,1.83532109,34418.0,34417.0,0.44707544]
[1625300460005,6.23992109,34418.0,34417.0,0.44707544]
[1625300460704,4.70417544,34418.0,34417.0,0.44707544]
[1625300461205,6.24388092,34418.0,34417.0,0.44707544]
[1625300462308,6.24388092,34418.0,34417.0,0.24057544]
[1625300463611,1.78028092,34418.0,34417.0,0.24057544]
[1625300463761,1.83928092,34418.0,34417.0,0.24057544]
[1625300466867,1.83928092,34418.0,34413.0,0.85724637]
[1625300466967,1.89828092,34418.0,34412.0,0.34306844]
[1625300467416,6.58455074,34413.0,34411.0,0.9184]
[1625300467516,6.79196074,34413.0,34411.0,0.9184]
[1625300467618,6.90996074,34413.0,34411.0,0.9184]
[1625300467768,0.72172632,34412.0,34411.0,0.9184]
[1625300467971,2.38029682,34412.0,34411.0,0.9184]
[1625300468069,2.38029682,34412.0,34407.0,0.5836418]
[1625300468470,2.32129682,34412.0,34407.0,0.5836418]
[1625300468621,1.54014584,34410.0,34407.0,0.5836418]
[1625300468969,0.98749632,34412.0,34409.0,0.85769823]
[1625300469069,0.72172632,34412.0,34409.0,0.85769823]
[1625300469171,0.78072632,34412.0,34409.0,0.85769823]
[1625300469272,2.26265206,34412.0,34409.0,0.34307929]
[1625300469623,0.72172632,34412.0,34409.0,0.34307929]
[1625300469872,0.78072632,34412.0,34409.0,0.34307929]
[1625300469973,0.83972632,34412.0,34409.0,0.34307929]
[1625300470522,0.83972632,34412.0,34407.0,1.26970388]
[1625300470523,1.54017544,34410.0,34407.0,0.24057544]
[1625300470623,1.59917544,34410.0,34407.0,0.24057544]
[1625300470874,1.53876658,34408.0,34407.0,0.24057544]
[1625300471073,1.59776658,34408.0,34407.0,0.24057544]
[1625300471224,0.059,34408.0,34407.0,0.24057544]
[1625300471824,0.29957544,34408.0,34407.0,0.24057544]
[1625300472629,0.29957544,34408.0,34404.0,0.34298271]
[1625300472731,1.83687791,34408.0,34404.0,0.34298271]
[1625300473282,1.83687791,34408.0,34403.0,0.85743605]
[1625300473487,0.29957544,34408.0,34404.0,0.34284662]
[1625300473681,0.29957544,34408.0,34404.0,0.40184662]
[1625300473882,0.24057544,34405.0,34404.0,0.85710864]
[1625300474081,0.45203544,34405.0,34404.0,0.85710864]
[1625300474630,0.51103544,34405.0,34404.0,0.85710864]
[1625300474782,0.45203544,34405.0,34404.0,0.34284662]
[1625300475134,0.45203544,34405.0,34403.0,0.85709432]
[1625300475344,0.51103544,34405.0,34403.0,0.85709432]
[1625300475538,0.51103544,34405.0,34403.0,0.34282163]
[1625300475833,0.75161088,34405.0,34403.0,0.34282163]
[1625300477035,0.75161088,34405.0,34402.0,0.3427628]
[1625300477391,0.75161088,34405.0,34401.0,0.85682486]
[1625300477490,0.75161088,34405.0,34402.0,0.059]
[1625300477843,0.75161088,34405.0,34402.0,0.91568934]
[1625300478795,0.75161088,34405.0,34404.0,1.19924651]
[1625300478943,0.75161088,34405.0,34404.0,1.25824651]
[1625300479245,0.75161088,34405.0,34404.0,2.28633197]
[1625300479847,0.75161088,34405.0,34404.0,2.46790741]
[1625300480345,0.75161088,34405.0,34404.0,0.75453823]
[1625300480745,0.75161088,34405.0,34404.0,0.24057544]
[1625300481246,0.75161088,34405.0,34404.0,0.58338327]
[1625300481799,0.75161088,34405.0,34404.0,0.24057544]
[1625300482401,0.75161088,34405.0,34404.0,0.29957544]
[1625300482754,0.75161088,34405.0,34404.0,1.4991806]
[1625300483053,0.75161088,34405.0,34404.0,1.4401806]
[1625300483555,0.75161088,34405.0,34404.0,1.09750568]
[1625300484554,0.75161088,34405.0,34404.0,0.24057544]
[1625300485057,0.75161088,34405.0,34404.0,0.58334413]
[1625300485904,0.75161088,34405.0,34404.0,1.097549]
[1625300486357,0.75161088,34405.0,34404.0,0.58334413]
[1625300487459,0.75161088,34405.0,34404.0,1.09722491]
[1625300488161,0.75161088,34405.0,34404.0,1.43945929]
[1625300488818,0.75161088,34405.0,34404.0,0.75445622]
[1625300489514,0.75161088,34405.0,34404.0,1.43938239]
[1625300491069,0.75161088,34405.0,34404.0,2.46631838]
[1625300491669,0.75161088,34405.0,34404.0,1.43938239]
[1625300492620,0.75161088,34405.0,34404.0,0.75445622]
[1625300494376,0.75161088,34405.0,34404.0,1.09711481]
[1625300494979,0.75161088,34405.0,34404.0,0.58323403]
[1625300497031,0.75161088,34405.0,34404.0,0.7546736]
[1625300499435,0.75161088,34405.0,34404.0,1.44025475]
[1625300499884,0.75161088,34405.0,34404.0,0.7546736]
[1625300500890,0.75161088,34405.0,34404.0,0.58374523]
[1625300502850,2.29382993,34405.0,34404.0,0.24057544]
[1625300511064,1.81267905,34405.0,34404.0,0.24057544]
[1625300511467,0.27046,34405.0,34404.0,0.75553534]
[1625300511665,0.059,34405.0,34404.0,0.75553534]
[1625300512119,0.059,34405.0,34404.0,0.24057544]
[1625300512220,0.059,34405.0,34404.0,1.44214579]
[1625300512571,0.36867,34405.0,34404.0,0.75553474]
[1625300513274,1.91340513,34405.0,34404.0,0.41222854]
[1625300513725,1.91340513,34405.0,34404.0,0.24057544]
[1625300514075,2.39455601,34405.0,34403.0,0.51498408]
[1625300514176,2.45355601,34405.0,34403.0,0.51498408]
[1625300514680,1.54406842,34404.0,34400.0,0.17168178]
[1625300514827,1.60306842,34404.0,34400.0,0.17168178]
[1625300514932,1.66206842,34404.0,34400.0,0.17168178]
[1625300515181,1.54249159,34401.0,34398.0,0.24057544]
[1625300515279,1.54249159,34401.0,34396.0,0.17171093]
[1625300515382,1.66049159,34401.0,34396.0,0.17171093]
[1625300515479,1.66049159,34401.0,34394.0,1.14884056]
[1625300515480,1.54117405,34397.0,34394.0,1.14884056]
[1625300515578,1.82822405,34397.0,34394.0,1.14884056]
[1625300515680,1.94622405,34397.0,34394.0,1.14884056]
[1625300515931,1.54104727,34395.0,34394.0,0.9772]
[1625300516035,1.60004727,34395.0,34394.0,0.9772]
[1625300516131,2.14019815,34395.0,34393.0,0.51493193]
[1625300516482,2.14019815,34395.0,34392.0,0.51496185]
[1625300516982,1.53919957,34394.0,34392.0,0.17165395]
[1625300517182,1.65719957,34394.0,34392.0,0.17165395]
[1625300517533,0.118,34394.0,34391.0,0.51487545]
[1625300519439,0.059,34394.0,34391.0,0.51487545]
[1625300519537,0.059,34394.0,34391.0,0.57387545]
[1625300519736,0.059,34394.0,34391.0,0.23056424]
[1625300519987,0.059,34394.0,34393.0,0.51451501]
[1625300520088,0.059,34394.0,34393.0,0.75509045]
[1625300520187,0.059,34394.0,34393.0,1.09903045]
[1625300520337,0.059,34394.0,34393.0,1.04003045]
[1625300520690,0.059,34394.0,34393.0,1.09903045]
[1625300521091,0.059,34394.0,34393.0,1.04003045]
[1625300524301,0.059,34394.0,34393.0,0.69702044]
[1625300524502,0.059,34394.0,34393.0,0.75602044]
[1625300524703,1.53945376,34397.0,34393.0,0.81502044]
[1625300524907,0.9329,34410.0,34393.0,0.81502044]
[1625300524908,1.53997465,34399.0,34393.0,1.84416782]
[1625300525457,1.54090253,34401.0,34397.0,0.5145195]
[1625300525958,1.54090253,34401.0,34398.0,0.51465735]
[1625300526159,1.78147797,34401.0,34400.0,0.48115088]
[1625300526260,1.78147797,34401.0,34400.0,0.75417088]
[1625300526366,0.24057544,34401.0,34400.0,0.81317088]
[1625300526666,0.24057544,34401.0,34400.0,1.32779931]
[1625300527161,4.57577544,34401.0,34400.0,1.26879931]
[1625300527262,4.3352,34401.0,34400.0,0.78764843]
[1625300527515,4.3352,34401.0,34400.0,0.27302]
[1625300527613,4.3352,34401.0,34400.0,0.059]
[1625300527715,1.53970729,34403.0,34400.0,0.059]
[1625300527815,1.59870729,34403.0,34400.0,0.059]
[1625300528117,1.53970729,34403.0,34400.0,0.059]
[1625300528267,1.53970729,34403.0,34402.0,0.24057544]
[1625300528819,1.59870729,34403.0,34402.0,0.24057544]
[1625300529020,1.53970729,34403.0,34402.0,0.24057544]
[1625300529471,1.59870729,34403.0,34402.0,0.24057544]
[1625300529673,1.53970729,34403.0,34402.0,0.24057544]
[1625300530073,1.59870729,34403.0,34402.0,0.24057544]
[1625300530974,1.53970729,34403.0,34402.0,0.24057544]
[1625300531323,1.59870729,34403.0,34402.0,0.24057544]
[1625300531427,1.53970729,34403.0,34402.0,0.24057544]
[1625300531624,1.59870729,34403.0,34402.0,0.24057544]
[1625300531925,1.53970729,34403.0,34402.0,0.24057544]
[1625300532025,1.59870729,34403.0,34402.0,0.24057544]
[1625300532126,1.53970729,34403.0,34402.0,0.24057544]
[1625300532326,1.59870729,34403.0,34402.0,0.24057544]
[1625300532777,1.53970729,34403.0,34402.0,0.24057544]
[1625300532880,1.59870729,34403.0,34402.0,0.24057544]
[1625300533230,1.53970729,34403.0,34402.0,0.24057544]
[1625300533680,1.59870729,34403.0,34402.0,0.24057544]
[1625300533780,1.53970729,34403.0,34402.0,0.24057544]
[1625300534230,1.59870729,34403.0,34402.0,0.24057544]
[1625300534431,1.53970729,34403.0,34402.0,0.24057544]
[1625300534781,1.59870729,34403.0,34402.0,0.24057544]
[1625300534881,1.53970729,34403.0,34402.0,0.24057544]
[1625300534980,1.59870729,34403.0,34402.0,0.24057544]
[1625300535182,1.86296729,34403.0,34402.0,0.24057544]
[1625300537637,6.46016729,34403.0,34402.0,0.24057544]
[1625300540751,6.40116729,34403.0,34402.0,0.24057544]
[1625300540951,6.46016729,34403.0,34402.0,0.24057544]
[1625300541151,6.40116729,34403.0,34402.0,0.24057544]
[1625300541352,6.46016729,34403.0,34402.0,0.24057544]
[1625300541501,1.80396729,34403.0,34402.0,0.24057544]
[1625300541603,1.53970729,34403.0,34402.0,0.24057544]
[1625300542652,1.59870729,34403.0,34402.0,0.24057544]
[1625300542753,1.53970729,34403.0,34402.0,0.24057544]
[1625300543809,1.53970729,34403.0,34402.0,0.29957544]
[1625300544010,1.53970729,34403.0,34402.0,0.35857544]
[1625300544109,1.53970729,34403.0,34402.0,0.29957544]
[1625300544210,1.53970729,34403.0,34402.0,0.35857544]
[1625300544310,1.53970729,34403.0,34402.0,4.27317544]
[1625300544463,1.54165342,34409.0,34402.0,7.9453191]
[1625300544913,2.4746022,34410.0,34407.0,0.60049648]
[1625300545012,2.4746022,34410.0,34407.0,0.91039648]
[1625300545213,2.4746022,34410.0,34407.0,0.85139648]
[1625300545315,2.4746022,34410.0,34407.0,0.91039648]
[1625300545414,2.4746022,34410.0,34408.0,0.08578298]
[1625300545515,2.4746022,34410.0,34408.0,0.14478298]
[1625300546365,2.4746022,34410.0,34409.0,0.48115088]
[1625300546567,2.4746022,34410.0,34409.0,0.54015088]
[1625300549727,0.9329,34410.0,34409.0,0.54015088]
[1625300549926,0.9329,34410.0,34409.0,0.48115088]
[1625300550225,2.47697599,34410.0,34409.0,0.48115088]
[1625300550425,2.53597599,34410.0,34409.0,0.48115088]
[1625300551776,2.79057599,34410.0,34409.0,0.48115088]
[1625300553128,2.73157599,34410.0,34409.0,0.48115088]
[1625300553829,2.79057599,34410.0,34409.0,0.48115088]
[1625300553929,2.73157599,34410.0,34409.0,0.48115088]
[1625300554031,2.79057599,34410.0,34409.0,0.48115088]
[1625300554131,2.73157599,34410.0,34409.0,0.48115088]
[1625300554231,2.79057599,34410.0,34409.0,0.48115088]
[1625300554333,2.73157599,34410.0,34409.0,0.48115088]
[1625300554432,2.79057599,34410.0,34409.0,0.48115088]
[1625300554533,2.73157599,34410.0,34409.0,0.48115088]
[1625300555085,2.79057599,34410.0,34409.0,0.48115088]
[1625300559047,2.73157599,34410.0,34409.0,0.48115088]
[1625300560151,2.79057599,34410.0,34409.0,0.48115088]
[1625300560250,2.73157599,34410.0,34409.0,0.48115088]
[1625300560853,2.79057599,34410.0,34409.0,0.48115088]
[1625300561004,2.73157599,34410.0,34409.0,0.48115088]
[1625300561153,2.79057599,34410.0,34409.0,0.48115088]
[1625300561405,2.73157599,34410.0,34409.0,0.48115088]
[1625300561754,2.73157599,34410.0,34409.0,0.54015088]
[1625300561854,2.73157599,34410.0,34409.0,0.48115088]
[1625300562907,2.73157599,34410.0,34409.0,0.54015088]
[1625300564512,2.73157599,34410.0,34409.0,0.48115088]
[1625300564916,2.79057599,34410.0,34409.0,0.48115088]
[1625300565015,2.73157599,34410.0,34409.0,0.48115088]
[1625300565170,2.79057599,34410.0,34409.0,0.48115088]
[1625300565265,2.73157599,34410.0,34409.0,0.48115088]
[1625300565366,2.79057599,34410.0,34409.0,0.48115088]
[1625300565465,2.73157599,34410.0,34409.0,0.48115088]
[1625300565717,2.79057599,34410.0,34409.0,0.48115088]
[1625300566368,2.73157599,34410.0,34409.0,0.48115088]
[1625300566468,3.03115143,34410.0,34409.0,0.48115088]
[1625300566618,2.97215143,34410.0,34409.0,0.48115088]
[1625300566719,3.03115143,34410.0,34409.0,0.48115088]
[1625300567823,2.97215143,34410.0,34409.0,0.48115088]
[1625300567972,2.97215143,34410.0,34409.0,0.54015088]
[1625300568425,3.03115143,34410.0,34409.0,0.54015088]
[1625300568526,2.97215143,34410.0,34409.0,0.54015088]
[1625300568727,3.03115143,34410.0,34409.0,0.54015088]
[1625300568827,2.97215143,34410.0,34409.0,0.54015088]
[1625300568977,3.03115143,34410.0,34409.0,0.54015088]
[1625300580211,3.03115143,34410.0,34409.0,0.48115088]
[1625300580311,3.03115143,34410.0,34409.0,0.54015088]
[1625300583623,2.97215143,34410.0,34409.0,0.54015088]
[1625300584726,2.97215143,34410.0,34409.0,0.48115088]
[1625300584927,3.03115143,34410.0,34409.0,0.48115088]
[1625300585479,3.03115143,34410.0,34407.0,0.17145856]
[1625300585681,3.11935143,34410.0,34407.0,0.17145856]
[1625300585879,0.0869,34409.0,34407.0,0.08578185]
[1625300586079,0.059,34409.0,34407.0,0.08578185]
[1625300586482,3.26181019,34408.0,34407.0,0.08578185]
[1625300586581,3.56138563,34408.0,34407.0,0.08578185]
[1625300587132,3.50238563,34408.0,34407.0,0.08578185]
[1625300587233,1.84465246,34408.0,34407.0,0.08578185]
[1625300587533,1.78565246,34408.0,34407.0,0.08578185]
[1625300587834,1.78565246,34408.0,34407.0,0.14478185]
[1625300588336,1.78565246,34408.0,34407.0,0.4023158]
[1625300588639,1.78565246,34408.0,34407.0,1.64500009]
[1625300588640,0.24057544,34408.0,34407.0,1.64500009]
[1625300588737,0.24057544,34408.0,34407.0,1.58600009]
[1625300588890,0.24057544,34408.0,34407.0,1.64500009]
[1625300588989,0.24057544,34408.0,34407.0,1.58600009]
[1625300589091,1.78675969,34408.0,34407.0,1.64500009]
[1625300589190,1.78675969,34408.0,34407.0,1.58600009]
[1625300589392,0.24057544,34408.0,34407.0,1.58600009]
[1625300589792,1.78676494,34408.0,34407.0,1.58600009]
[1625300590392,1.78676494,34408.0,34407.0,0.38535729]
[1625300590492,1.78676494,34408.0,34407.0,0.47118503]
[1625300592345,1.78676494,34408.0,34407.0,0.64287582]
[1625300593199,1.78676494,34408.0,34407.0,0.47118503]
[1625300593602,1.78676494,34408.0,34407.0,0.38535729]
[1625300593700,1.78676494,34408.0,34407.0,0.29957544]
[1625300594001,1.78676494,34408.0,34407.0,0.38544927]
[1625300594452,1.78676494,34408.0,34407.0,0.55720728]
[1625300595304,1.78676494,34408.0,34407.0,0.38544927]
[1625300595855,1.78676494,34408.0,34407.0,0.29957544]
[1625300596358,1.78676494,34408.0,34407.0,0.38544039]
[1625300596611,1.28646494,34408.0,34407.0,0.69478039]
[1625300596711,1.28646494,34408.0,34407.0,1.43535583]
[1625300596875,0.73046494,34408.0,34407.0,1.43535583]
[1625300597212,0.72016494,34408.0,34407.0,0.93535583]
[1625300597769,0.21241,34423.0,34407.0,5.64462164]
[1625300597770,1.71831104,34420.0,34407.0,5.64462164]
[1625300597866,1.71831104,34420.0,34408.0,0.057]
[1625300597963,1.71831104,34420.0,34408.0,0.175]
[1625300598317,1.71864163,34421.0,34418.0,0.08559839]
[1625300598514,1.71864163,34421.0,34418.0,0.14459839]
[1625300598714,1.71864163,34421.0,34420.0,0.72172632]
[1625300598815,1.71753157,34422.0,34420.0,0.72172632]
[1625300599216,1.71753157,34422.0,34420.0,0.78072632]
[1625300600466,0.971,34426.0,34420.0,0.78072632]
[1625300600467,1.71704653,34423.0,34420.0,0.78072632]
[1625300600667,1.71704653,34423.0,34421.0,0.24057544]
[1625300601371,1.71700452,34422.0,34421.0,0.24057544]
[1625300601469,2.02068452,34422.0,34421.0,0.24057544]
[1625300601669,2.07968452,34422.0,34421.0,0.24057544]
[1625300602671,2.32025996,34422.0,34421.0,0.24057544]
[1625300604025,2.26125996,34422.0,34421.0,0.24057544]
[1625300606179,2.32025996,34422.0,34421.0,0.24057544]
[1625300609288,3.80583942,34422.0,34421.0,0.24057544]
[1625300609489,3.86483942,34422.0,34421.0,0.24057544]
[1625300609888,3.80583942,34422.0,34421.0,0.24057544]
[1625300610240,2.0888349,34422.0,34421.0,0.24057544]
[1625300610940,2.1478349,34422.0,34421.0,0.24057544]
[1625300611340,3.86346658,34422.0,34421.0,0.24057544]
[1625300614194,2.1478349,34422.0,34421.0,0.24057544]
[1625300614596,3.86296953,34422.0,34421.0,0.24057544]
[1625300614796,3.80396953,34422.0,34421.0,0.24057544]
[1625300615597,3.86296953,34422.0,34421.0,0.24057544]
[1625300615748,3.56339409,34422.0,34421.0,0.24057544]
[1625300615899,1.84825946,34422.0,34421.0,0.24057544]
[1625300615998,1.54457946,34422.0,34421.0,0.24057544]
[1625300616349,1.60357946,34422.0,34421.0,0.24057544]
[1625300618906,1.54457946,34422.0,34421.0,0.24057544]
[1625300619165,1.60357946,34422.0,34421.0,0.24057544]
[1625300624777,1.54457946,34422.0,34421.0,0.24057544]
[1625300624976,1.60357946,34422.0,34421.0,0.24057544]
[1625300626882,1.66257946,34422.0,34421.0,0.24057544]
[1625300627133,3.37692324,34422.0,34421.0,0.24057544]
[1625300628987,3.31792324,34422.0,34421.0,0.24057544]
[1625300630744,1.8441549,34422.0,34421.0,0.24057544]
[1625300631944,1.60357946,34422.0,34421.0,0.24057544]
[1625300632294,3.31810073,34422.0,34421.0,0.24057544]
[1625300633048,1.60357946,34422.0,34421.0,0.24057544]
[1625300633396,1.81898946,34422.0,34421.0,0.24057544]
[1625300633796,3.53359006,34422.0,34421.0,0.24057544]
[1625300636301,3.59259006,34422.0,34421.0,0.24057544]
[1625300636801,3.8331655,34422.0,34421.0,0.24057544]
[1625300637504,4.03896334,34422.0,34420.0,0.24057544]
[1625300637856,3.46460909,34421.0,34420.0,0.24057544]
[1625300637954,3.58260909,34421.0,34420.0,0.24057544]
[1625300638805,3.82318453,34421.0,34416.0,0.24057544]
[1625300639406,3.25928804,34417.0,34416.0,0.24057544]
[1625300639557,3.37728804,34417.0,34416.0,0.24057544]
[1625300639957,3.31828804,34417.0,34416.0,0.24057544]
[1625300640563,1.54388231,34417.0,34416.0,0.24057544]
[1625300640660,1.60288231,34417.0,34416.0,0.24057544]
[1625300640760,1.54388231,34417.0,34416.0,0.24057544]
[1625300640860,1.84345775,34417.0,34416.0,0.24057544]
[1625300641312,1.78445775,34417.0,34416.0,0.24057544]
[1625300641413,1.84345775,34417.0,34416.0,0.24057544]
[1625300642816,1.78445775,34417.0,34416.0,0.24057544]
[1625300644422,1.54388231,34417.0,34416.0,0.24057544]
[1625300644572,1.30348231,34417.0,34416.0,0.46575544]
[1625300644674,1.30348231,34417.0,34416.0,0.52475544]
[1625300644777,1.30348231,34417.0,34416.0,0.58375544]
[1625300644873,1.71539745,34424.0,34416.0,1.42327157]
[1625300645175,1.71539745,34424.0,34417.0,4.1029]
[1625300645374,1.71539745,34424.0,34417.0,4.2209]
[1625300645527,1.71539745,34424.0,34417.0,0.118]
[1625300645624,0.971,34426.0,34421.0,0.08546142]
[1625300645731,0.971,34426.0,34421.0,0.14446142]
[1625300645926,0.971,34426.0,34421.0,0.059]
[1625300646680,0.24057544,34427.0,34421.0,0.34792]
[1625300646881,0.24057544,34427.0,34426.0,0.48115088]
[1625300646882,1.9561305,34427.0,34426.0,0.48115088]
[1625300647387,0.24057544,34427.0,34426.0,0.48115088]
[1625300648835,1.95632574,34427.0,34426.0,0.48115088]
[1625300649887,5.59642574,34427.0,34426.0,0.48115088]
[1625300650888,1.95632574,34427.0,34426.0,0.48115088]
[1625300653145,1.95632574,34427.0,34426.0,0.54015088]
[1625300653296,1.95632574,34427.0,34426.0,0.82210088]
[1625300653395,1.7157503,34427.0,34426.0,0.82210088]
[1625300653698,0.24057544,34434.0,34426.0,0.82210088]
[1625300653699,1.7157404,34430.0,34426.0,0.82210088]
[1625300654447,1.7157404,34430.0,34426.0,0.88110088]
[1625300654698,1.71612931,34431.0,34426.0,0.88110088]
[1625300654899,1.71612931,34431.0,34430.0,0.24057544]
[1625300655449,1.71610813,34432.0,34430.0,0.24057544]
[1625300655999,1.71542807,34433.0,34430.0,0.24057544]
[1625300656399,1.71544489,34432.0,34430.0,0.24057544]
[1625300656849,0.24057544,34434.0,34430.0,0.24057544]
[1625300656850,3.26051161,34431.0,34430.0,0.24057544]
[1625300657153,1.5444619,34431.0,34430.0,0.24057544]
[1625300661459,1.5444619,34431.0,34430.0,0.29957544]
[1625300661659,1.5444619,34431.0,34430.0,0.35857544]
[1625300662207,1.54292346,34434.0,34430.0,1.14721601]
[1625300662306,1.54292346,34434.0,34432.0,3.8892]
[1625300662507,1.54292346,34434.0,34432.0,3.9482]
[1625300662606,1.54292346,34434.0,34432.0,0.118]
[1625300662708,1.54278762,34435.0,34432.0,0.20323934]
[1625300662906,1.54278762,34435.0,34434.0,0.48115088]
[1625300663058,1.54278762,34435.0,34434.0,0.54015088]
[1625300663159,1.54278762,34435.0,34434.0,0.59915088]
[1625300663309,1.54267265,34438.0,34434.0,0.85466514]
[1625300663659,1.54267265,34438.0,34434.0,0.79566514]
[1625300664060,1.54267265,34438.0,34434.0,0.54015088]
[1625300664360,1.54267265,34438.0,34434.0,0.59915088]
[1625300664460,1.54267265,34438.0,34434.0,0.54015088]
[1625300664561,1.54267265,34438.0,34434.0,0.59915088]
[1625300664960,1.54267265,34438.0,34437.0,0.24057544]
[1625300665162,1.54108971,34439.0,34437.0,0.24057544]
[1625300665260,1.54108971,34439.0,34437.0,0.29957544]
[1625300665513,1.54108971,34439.0,34437.0,0.24057544]
[1625300665664,1.54005735,34440.0,34437.0,0.24057544]
[1625300666014,2.53844744,34441.0,34437.0,0.24057544]
[1625300666566,2.53844744,34441.0,34437.0,0.29957544]
[1625300666967,2.53844744,34441.0,34440.0,0.24057544]
[1625300667069,1.54004744,34441.0,34440.0,0.46477544]
[1625300667168,1.54004744,34441.0,34440.0,0.52377544]
[1625300667366,1.54004744,34441.0,34440.0,0.58277544]
[1625300667767,1.54004744,34441.0,34440.0,0.52377544]
[1625300667868,1.53960392,34448.0,34440.0,0.77833225]
[1625300668067,1.59860392,34448.0,34440.0,0.77833225]
[1625300668369,1.59860392,34448.0,34440.0,0.69347998]
[1625300668469,1.59860392,34448.0,34440.0,0.52377544]
[1625300668822,1.53774611,34447.0,34440.0,0.52377544]
[1625300668974,1.53774611,34447.0,34446.0,0.48115088]
[1625300669073,1.59674611,34447.0,34446.0,0.48115088]
[1625300669623,0.059,34447.0,34446.0,0.48115088]
[1625300670477,1.53773433,34448.0,34446.0,0.48115088]
[1625300670676,1.77682582,34451.0,34446.0,0.48115088]
[1625300670977,1.77682582,34451.0,34450.0,0.24057544]
[1625300671728,0.24057544,34451.0,34450.0,0.24057544]
[1625300674333,0.24057544,34451.0,34450.0,0.45207544]
[1625300675984,0.24057544,34451.0,34450.0,0.51107544]
[1625300676187,1.77360833,34455.0,34450.0,0.51107544]
[1625300676389,0.24057544,34455.0,34450.0,0.51107544]
[1625300676991,0.24057544,34455.0,34454.0,0.24057544]
[1625300679950,0.9954,34456.0,34454.0,0.24057544]
[1625300680050,1.0544,34456.0,34454.0,0.24057544]
[1625300680802,0.9954,34456.0,34454.0,0.24057544]
[1625300680902,0.9954,34456.0,34454.0,0.29957544]
[1625300681003,0.9954,34456.0,34455.0,0.48115088]
[1625300681256,0.9954,34456.0,34455.0,0.54015088]
[1625300681559,0.24057544,34462.0,34455.0,0.54015088]
[1625300683009,0.24057544,34462.0,34461.0,0.24057544]
[1625300683109,0.24057544,34462.0,34461.0,0.47766544]
[1625300684812,0.24057544,34462.0,34461.0,0.53666544]
[1625300685211,0.24057544,34466.0,34461.0,0.53666544]
[1625300686113,0.24057544,34466.0,34461.0,0.47766544]
[1625300686362,0.24057544,34466.0,34461.0,0.53666544]
[1625300687062,0.24057544,34466.0,34465.0,0.48115088]
[1625300687211,0.29957544,34466.0,34465.0,0.48115088]
[1625300687917,0.29957544,34466.0,34465.0,0.54015088]
[1625300688015,0.24057544,34466.0,34465.0,0.54015088]
[1625300688466,0.29957544,34466.0,34465.0,0.54015088]
[1625300688565,0.24057544,34466.0,34465.0,0.54015088]
[1625300689067,0.24057544,34470.0,34465.0,0.54015088]
[1625300689217,0.29957544,34470.0,34465.0,0.48115088]
[1625300689316,0.24057544,34470.0,34465.0,0.48115088]
[1625300689567,0.29957544,34470.0,34465.0,0.48115088]
[1625300689668,0.24057544,34470.0,34465.0,0.48115088]
[1625300689817,0.29957544,34470.0,34465.0,0.48115088]
[1625300690869,0.35857544,34470.0,34465.0,0.48115088]
[1625300691022,0.35857544,34470.0,34469.0,0.24057544]
[1625300691671,0.29957544,34470.0,34469.0,0.24057544]
[1625300695079,0.35857544,34470.0,34469.0,0.24057544]
[1625300697089,0.57470544,34470.0,34469.0,0.24057544]
[1625300701596,0.57470544,34470.0,34465.0,0.24057544]
[1625300702146,0.0868,34469.0,34456.0,0.24057544]
[1625300702298,0.2048,34469.0,34456.0,0.24057544]
[1625300702848,4.7025,34457.0,34456.0,0.24057544]
[1625300702952,4.7025,34457.0,34451.0,0.9323]
[1625300703053,4.96005,34457.0,34441.0,0.2510229]
[1625300703150,0.24057544,34452.0,34451.0,0.24057544]
[1625300703450,0.29957544,34452.0,34448.0,0.24057544]
[1625300703701,0.35857544,34452.0,34448.0,0.24057544]
[1625300704003,0.29957544,34452.0,34448.0,0.24057544]
[1625300704103,0.35857544,34452.0,34448.0,0.24057544]
[1625300705105,0.24057544,34449.0,34448.0,0.24057544]
[1625300705205,0.46039544,34449.0,34448.0,0.24057544]
[1625300705304,0.57839544,34449.0,34448.0,0.24057544]
[1625300714529,0.57839544,34449.0,34441.0,0.24057544]
[1625300714530,0.63539544,34449.0,34435.0,0.33855603]
[1625300714629,0.63539544,34449.0,34435.0,0.50783404]
[1625300714728,0.63539544,34449.0,34435.0,0.56683404]
[1625300715135,0.63539544,34449.0,34435.0,0.22827801]
[1625300715228,0.48115088,34436.0,34435.0,0.22827801]
[1625300715481,0.48115088,34436.0,34435.0,0.56698792]